bitfinex-derivatives/quotes_SOLF0:USTF0_20260207
["timestamp","ask_amount","ask_price","bid_price","bid_amount"]
[1770435251942,60.92006711,88.156,88.102,10.2223]
[1770435252144,60.92006711,88.156,88.102,72.87191606]
[1770435252844,60.92006711,88.156,88.102,62.64961606]
[1770435253849,60.92006711,88.151,88.102,62.64961606]
[1770435255042,10.2169,88.149,88.102,62.64961606]
[1770435255246,60.92006711,88.148,88.102,62.64961606]
[1770435256351,71.13826711,88.138,88.087,62.64961606]
[1770435256655,60.92006711,88.127,88.087,62.64961606]
[1770435257246,60.92006711,88.18,88.087,62.64961606]
[1770435257448,71.13766711,88.143,88.087,62.64961606]
[1770435258359,60.92006711,88.153,88.091,62.64961606]
[1770435258854,60.92006711,88.153,88.045,62.64961606]
[1770435259152,71.13986711,88.124,88.068,62.64961606]
[1770435260244,10.2213,88.112,88.068,62.64961606]
[1770435261257,20.4319,88.158,88.068,62.64961606]
[1770435261258,10.2216,88.109,88.068,62.64961606]
[1770435261449,60.92006711,88.111,88.048,62.64961606]
[1770435262844,10.2226,88.101,88.048,62.64961606]
[1770435266455,10.2226,88.101,88.012,34.12]
[1770435266456,10.2226,88.101,88.05,62.64961606]
[1770435266955,10.2226,88.101,88.054,62.64961606]
[1770435267252,20.4319,88.158,88.054,62.64961606]
[1770435267450,60.92006711,88.157,88.054,62.64961606]
[1770435268556,60.92006711,88.113,88.054,62.64961606]
[1770435268757,60.92006711,88.113,88.017,62.64961606]
[1770435268951,60.92006711,88.113,88.029,62.64961606]
[1770435269756,10.2224,88.102,88.051,62.64961606]
[1770435270052,60.92006711,88.113,88.051,62.64961606]
[1770435270755,10.2214,88.111,88.056,62.64961606]
[1770435271358,71.14246711,88.102,88.056,62.64961606]
[1770435271557,60.92006711,88.102,88.039,62.64961606]
[1770435272755,10.2236,88.092,88.039,62.64961606]
[1770435272955,60.92006711,88.092,88.039,62.64961606]
[1770435273953,20.4371,88.135,88.041,62.64961606]
[1770435274155,60.92006711,88.134,88.041,62.64961606]
[1770435275161,60.92006711,88.106,88.043,62.64961606]
[1770435275958,10.2237,88.091,88.046,58.89768108]
[1770435276662,10.2252,88.078,88.046,58.89768108]
[1770435278855,10.2252,88.078,88.031,58.89768108]
[1770435279557,10.2243,88.086,88.04,10.2295]
[1770435279856,10.2243,88.086,88.031,58.89768108]
[1770435280157,68.74093746,88.086,88.031,58.89768108]
[1770435280860,68.74093746,88.086,88.033,58.89768108]
[1770435281860,58.51663746,88.064,87.996,58.89768108]
[1770435282666,68.74443746,88.056,88.002,58.89768108]
[1770435283264,58.51663746,88.056,88.004,58.89768108]
[1770435284364,58.51663746,88.053,88.004,58.89768108]
[1770435285455,58.51663746,88.053,88.006,58.89768108]
[1770435285963,58.51663746,88.053,88.007,10.2333]
[1770435286365,58.51663746,88.053,88.007,69.13098108]
[1770435287965,58.51663746,88.053,88.007,58.89768108]
[1770435288954,58.51663746,88.068,88.01,58.89768108]
[1770435289161,58.51663746,88.111,88.01,58.89768108]
[1770435290166,10.2238,88.09,88.041,58.89768108]
[1770435291268,58.51663746,88.094,88.044,58.89768108]
[1770435291963,58.51663746,88.123,88.048,58.89768108]
[1770435292762,58.51663746,88.116,88.062,69.12468108]
[1770435293356,68.73763746,88.114,88.062,58.89768108]
[1770435297069,58.51663746,88.105,88.062,58.89768108]
[1770435298757,58.51663746,88.102,88.062,58.89768108]
[1770435298964,58.51663746,88.102,88.05,10.2284]
[1770435299265,58.51663746,88.102,88.043,58.89768108]
[1770435299965,58.51663746,88.09,88.043,58.89768108]
[1770435301761,10.2242,88.087,88.043,58.89768108]
[1770435302463,58.51663746,88.09,88.043,58.89768108]
[1770435303861,58.51663746,88.09,88.046,10.2288]
[1770435304058,58.51663746,88.09,88.046,69.12648108]
[1770435304865,10.2221,88.105,88.046,69.12648108]
[1770435305071,1.97611625,88.132,88.062,58.89768108]
[1770435305272,58.51663746,88.131,88.062,58.89768108]
[1770435305473,1.97611625,88.132,88.062,58.89768108]
[1770435305474,58.51663746,88.1,88.062,58.89768108]
[1770435305665,58.51663746,88.1,88.044,58.72706375]
[1770435306971,66.85653053,88.09,88.044,58.72706375]
[1770435307565,56.63273053,88.09,88.044,68.95616375]
[1770435312871,56.63273053,88.09,88.044,58.72706375]
[1770435313875,56.63273053,88.09,88.046,58.88284092]
[1770435314070,56.63273053,88.09,88.033,58.88284092]
[1770435314376,1.97611625,88.132,87.969,34.05501143]
[1770435314377,53.46067097,88.059,88.007,69.11614092]
[1770435318178,53.46067097,88.059,88.015,10.2324]
[1770435318381,53.46067097,88.059,88.016,58.88284092]
[1770435318678,53.46067097,88.119,88.016,58.88284092]
[1770435319077,53.46067097,88.088,88.036,10.23]
[1770435319968,159.0,88.126,88.036,69.11284092]
[1770435319969,53.46067097,88.087,88.036,69.11284092]
[1770435321979,53.46067097,88.087,88.046,10.2288]
[1770435322378,53.46067097,88.087,88.036,58.88284092]
[1770435324680,53.46067097,88.087,88.038,10.2297]
[1770435324880,53.46067097,88.087,88.038,69.11254092]
[1770435325878,53.46067097,88.087,88.049,69.11124092]
[1770435327983,53.46067097,88.087,88.0,34.12]
[1770435328287,53.46067097,88.087,88.001,58.88284092]
[1770435329089,53.46067097,88.085,88.026,10.2312]
[1770435329482,53.46067097,88.085,88.026,69.11404092]
[1770435330688,53.46067097,88.082,88.026,69.11404092]
[1770435334084,159.0,88.143,87.999,58.88284092]
[1770435334085,53.46067097,88.076,87.999,58.88284092]
[1770435334690,53.46067097,88.073,88.014,10.2325]
[1770435335698,10.2265,88.067,88.014,10.2325]
[1770435335882,57.10628259,88.066,88.014,10.2325]
[1770435336392,57.10628259,88.082,88.023,55.9690364]
[1770435337688,57.10628259,88.071,88.023,55.9690364]
[1770435338806,57.10628259,88.071,88.034,10.2301]
[1770435340094,10.2237,88.091,88.034,10.2301]
[1770435340301,10.2237,88.091,88.039,10.2296]
[1770435340302,57.10628259,88.09,88.039,10.2296]
[1770435341405,57.10628259,88.09,88.043,10.2292]
[1770435342201,10.2227,88.1,88.052,55.9690364]
[1770435342606,67.32898259,88.1,88.052,55.9690364]
[1770435343902,67.32898259,88.1,88.043,10.2291]
[1770435344104,57.10628259,88.088,88.039,55.9690364]
[1770435345305,57.10628259,88.102,88.04,55.9690364]
[1770435345512,1.97611625,88.132,88.04,55.9690364]
[1770435345513,57.10628259,88.131,88.04,55.9690364]
[1770435346710,57.10628259,88.131,88.071,55.9690364]
[1770435347008,57.10628259,88.144,88.071,55.9690364]
[1770435347210,159.0,88.191,88.042,20.4585]
[1770435347211,59.08191644,88.158,88.108,10.2215]
[1770435347401,57.10628259,88.158,88.108,66.1905364]
[1770435347807,57.10628259,88.158,88.061,34.12]
[1770435347808,1.9750508,88.178,88.118,55.9690364]
[1770435348114,57.10628259,88.19,88.118,55.9690364]
[1770435348304,59.08098036,88.188,88.118,55.9690364]
[1770435348802,57.10628259,88.188,88.118,55.9690364]
[1770435349508,57.10628259,88.188,88.131,10.219]
[1770435349707,57.10628259,88.188,88.132,55.9690364]
[1770435351206,57.10628259,88.203,88.134,55.9690364]
[1770435351408,57.10628259,88.217,88.134,55.9690364]
[1770435351612,57.10628259,88.237,88.134,55.9690364]
[1770435352811,57.10628259,88.237,88.171,66.1833364]
[1770435353208,57.10628259,88.235,88.171,55.9690364]
[1770435353910,57.10628259,88.231,88.171,55.9690364]
[1770435354115,57.10628259,88.231,88.103,20.4445]
[1770435354116,57.10628259,88.231,88.146,55.9690364]
[1770435354514,1.97398089,88.238,88.103,20.4445]
[1770435354515,57.10628259,88.238,88.183,55.9690364]
[1770435355411,57.10628259,88.238,88.184,55.9690364]
[1770435356010,57.10628259,88.238,88.167,55.9690364]
[1770435356411,57.10628259,88.236,88.167,55.9690364]
[1770435357513,57.10628259,88.23,88.167,55.9690364]
[1770435358309,57.10628259,88.226,88.167,55.9690364]
[1770435359121,57.10628259,88.224,88.167,55.9690364]
[1770435359317,57.10628259,88.224,88.137,55.9690364]
[1770435359517,57.10628259,88.21,88.137,55.9690364]
[1770435361010,57.10628259,88.21,88.125,55.9690364]
[1770435361608,57.10628259,88.195,88.112,55.9690364]
[1770435362714,57.10628259,88.195,88.13,55.9690364]
[1770435363819,57.10628259,88.191,88.13,55.9690364]
[1770435364410,57.10628259,88.191,88.134,55.9690364]
[1770435364613,57.10628259,88.247,88.134,55.9690364]
[1770435365017,57.10628259,88.213,88.134,55.9690364]
[1770435365815,51.55779747,88.206,88.134,55.9690364]
[1770435367826,10.2118,88.194,88.134,55.9690364]
[1770435368027,61.76959747,88.194,88.134,55.9690364]
[1770435368226,51.55779747,88.194,88.1,54.75115822]
[1770435369423,53.34219773,88.178,88.112,54.75115822]
[1770435370617,53.34219773,88.178,88.126,10.2196]
[1770435370817,53.34219773,88.178,88.127,54.75115822]
[1770435371222,53.34219773,88.175,88.111,54.75115822]
[1770435372323,20.4171,88.222,88.096,54.75115822]
[1770435372324,10.2171,88.148,88.096,54.75115822]
[1770435374019,10.2171,88.148,88.042,20.4586]
[1770435374020,53.34219773,88.148,88.075,54.75115822]
[1770435374725,10.2206,88.117,88.075,54.75115822]
[1770435374926,53.34219773,88.122,88.075,54.75115822]
[1770435375625,10.2202,88.121,88.075,54.75115822]
[1770435376127,10.2221,88.105,88.046,54.75115822]
[1770435376420,63.56429773,88.105,88.046,54.75115822]
[1770435377821,53.34219773,88.105,88.046,54.75115822]
[1770435379120,158.86,88.17,87.989,34.12]
[1770435379121,53.34219773,88.158,88.071,54.75115822]
[1770435379717,63.55809773,88.158,88.09,54.75115822]
[1770435380225,53.34219773,88.158,88.098,54.75115822]
[1770435380725,158.86,88.17,88.098,54.75115822]
[1770435380930,53.34219773,88.191,88.124,54.75115822]
[1770435381830,53.34219773,88.191,88.131,10.219]
[1770435383026,53.34219773,88.191,88.131,64.97015822]
[1770435385830,53.34219773,88.185,88.131,54.75115822]
[1770435386026,53.34219773,88.185,88.12,10.2202]
[1770435386027,53.34219773,88.185,88.121,54.75115822]
[1770435386425,10.2133,88.181,88.121,54.75115822]
[1770435386624,53.34219773,88.18,88.121,54.75115822]
[1770435387334,53.34219773,88.175,88.121,54.75115822]
[1770435387833,53.34219773,88.175,88.11,54.75115822]
[1770435388030,53.34219773,88.171,88.112,54.75115822]
[1770435390036,63.55689773,88.168,88.112,54.75115822]
[1770435391237,10.2136,88.178,88.112,54.75115822]
[1770435391634,63.55579773,88.178,88.112,54.75115822]
[1770435391839,53.34219773,88.178,88.123,54.75115822]
[1770435392532,53.34219773,88.178,88.125,54.75115822]
[1770435394740,10.2137,88.177,88.125,54.75115822]
[1770435396742,62.42962798,88.177,88.125,54.75115822]
[1770435397744,52.21592798,88.192,88.134,51.60457202]
[1770435398740,52.21592798,88.18,88.134,51.60457202]
[1770435400037,52.21592798,88.18,88.122,10.2199]
[1770435400236,52.21592798,88.18,88.122,61.82447202]
[1770435400434,10.2135,88.179,88.122,61.82447202]
[1770435400842,52.21592798,88.18,88.122,61.82447202]
[1770435401545,52.21592798,88.18,88.133,61.82327202]
[1770435401747,52.21592798,88.195,88.133,51.60457202]
[1770435402839,52.21592798,88.195,88.143,10.2176]
[1770435403647,52.21592798,88.193,88.143,10.2176]
[1770435405043,10.211,88.2,88.147,51.60457202]
[1770435405443,62.42692798,88.2,88.147,51.60457202]
[1770435409450,62.42692798,88.2,88.094,34.12]
[1770435409451,62.42692798,88.2,88.149,51.60457202]
[1770435409855,52.21592798,88.2,88.149,51.60457202]
[1770435410050,62.42572798,88.211,88.159,61.82027202]
[1770435410353,62.42572798,88.211,88.159,51.60457202]
[1770435412352,62.42572798,88.211,88.15,10.2167]
[1770435413659,62.42572798,88.211,88.15,61.82127202]
[1770435415753,52.21592798,88.211,88.136,51.60457202]
[1770435416861,52.21592798,88.189,88.136,51.60457202]
[1770435420560,20.4104,88.251,88.14,34.12]
[1770435420561,52.21592798,88.218,88.14,34.12]
[1770435420756,52.21592798,88.218,88.141,51.60457202]
[1770435421151,10.2098,88.211,88.155,10.2161]
[1770435421351,20.4104,88.251,88.141,51.60457202]
[1770435421352,52.21592798,88.21,88.141,51.60457202]
[1770435422864,52.21592798,88.208,88.154,51.60457202]
[1770435423857,52.21592798,88.208,88.158,10.2158]
[1770435424460,10.2085,88.222,88.166,61.81937202]
[1770435424966,52.21592798,88.222,88.175,51.60457202]
[1770435425266,52.21592798,88.222,88.159,51.60457202]
[1770435426861,53.60134127,88.218,88.162,50.28245341]
[1770435427766,53.60134127,88.218,88.163,10.2152]
[1770435428066,53.60134127,88.218,88.164,50.28245341]
[1770435428461,50.25390826,88.216,88.164,50.28245341]
[1770435428765,50.25390826,88.216,88.154,60.94887972]
[1770435429766,50.25390826,88.212,88.154,60.94887972]
[1770435430967,50.25390826,88.21,88.154,60.94887972]
[1770435432066,50.25390826,88.21,88.089,159.0381]
[1770435432067,50.25390826,88.203,88.138,50.73257972]
[1770435432363,50.25390826,88.216,88.143,50.73257972]
[1770435433169,60.46310826,88.216,88.157,50.73257972]
[1770435434566,60.46310826,88.216,88.159,60.94827972]
[1770435435467,50.25390826,88.205,88.145,50.73257972]
[1770435436760,50.25390826,88.201,88.145,60.94997972]
[1770435437570,50.25390826,88.216,88.156,50.73257972]
[1770435438768,50.25390826,88.216,88.168,50.73257972]
[1770435439773,50.25390826,88.216,88.169,60.94707972]
[1770435440074,50.25390826,88.212,88.169,50.73257972]
[1770435442778,60.46370826,88.211,88.169,50.73257972]
[1770435442977,60.46370826,88.211,88.157,50.73257972]
[1770435443179,60.46370826,88.211,88.158,10.2159]
[1770435443778,10.2106,88.204,88.148,10.217]
[1770435443980,50.25390826,88.211,88.142,50.73257972]
[1770435444574,50.25390826,88.208,88.144,50.73257972]
[1770435445077,50.25390826,88.221,88.144,50.73257972]
[1770435445577,50.25390826,88.221,88.169,50.73257972]
[1770435446173,50.25390826,88.234,88.172,50.73257972]
[1770435446375,50.25390826,88.247,88.172,50.73257972]
[1770435446580,50.25390826,88.245,88.183,50.73257972]
[1770435447681,10.2063,88.241,88.183,50.73257972]
[1770435447881,50.25390826,88.24,88.183,50.73257972]
[1770435448181,50.25390826,88.24,88.17,50.73257972]
[1770435448476,50.25390826,88.229,88.18,50.73257972]
[1770435455386,50.25390826,88.227,88.18,50.73257972]
[1770435457780,50.25390826,88.227,88.181,10.2131]
[1770435459086,50.25390826,88.227,88.181,61.85546062]
[1770435459888,50.25390826,88.227,88.181,51.64236062]
[1770435460677,49.93135602,88.246,88.188,10.2123]
[1770435460883,49.93135602,88.246,88.189,51.64236062]
[1770435462392,49.93135602,88.246,88.152,34.12]
[1770435462393,49.93135602,88.246,88.192,51.64236062]
[1770435464490,49.93135602,88.246,88.194,51.64236062]
[1770435465788,49.93135602,88.246,88.196,51.64236062]
[1770435469000,10.2044,88.257,88.16,34.12]
[1770435469001,1.97319181,88.258,88.205,51.64236062]
[1770435469190,49.93135602,88.265,88.205,51.64236062]
[1770435470103,49.93135602,88.263,88.205,51.64236062]
[1770435470296,49.93135602,88.263,88.192,51.64236062]
[1770435471803,49.93135602,88.25,88.196,51.64236062]
[1770435472798,49.93135602,88.25,88.198,51.64236062]
[1770435478005,49.93135602,88.25,88.201,51.64236062]
[1770435478313,49.93135602,88.259,88.201,51.64236062]
[1770435478700,49.93135602,88.257,88.203,51.64236062]
[1770435479804,49.93135602,88.252,88.203,51.64236062]
[1770435480714,49.93135602,88.25,88.203,51.64236062]
[1770435481104,49.93135602,88.25,88.165,34.06]
[1770435481105,49.93135602,88.25,88.189,51.64236062]
[1770435481310,49.93135602,88.228,88.156,51.64236062]
[1770435481697,49.93135602,88.228,88.173,51.64236062]
[1770435482101,49.93135602,88.277,88.173,51.64236062]
[1770435482306,49.93135602,88.277,88.194,51.64236062]
[1770435482506,49.93135602,88.273,88.194,51.64236062]
[1770435482803,49.93135602,88.273,88.211,51.64236062]
[1770435483813,1.97278912,88.278,88.211,51.64236062]
[1770435483814,49.93135602,88.269,88.211,51.64236062]
[1770435484203,49.93135602,88.266,88.211,51.64236062]
[1770435485813,52.74970842,88.256,88.211,51.64236062]
[1770435486914,52.74970842,88.252,88.159,48.64523771]
[1770435487509,52.74970842,88.233,88.163,48.64523771]
[1770435488812,49.00034729,88.229,88.168,53.26778194]
[1770435489816,49.00034729,88.226,88.168,53.26778194]
[1770435490016,49.00034729,88.226,88.155,53.26778194]
[1770435491824,10.2111,88.2,88.155,53.26778194]
[1770435492320,49.00034729,88.203,88.155,53.26778194]
[1770435494920,59.21104729,88.203,88.155,53.26778194]
[1770435496328,49.00034729,88.203,88.155,53.26778194]
[1770435496821,49.00034729,88.203,88.143,53.26778194]
[1770435497424,49.00034729,88.199,88.143,53.26778194]
[1770435499426,20.4125,88.242,88.13,53.26778194]
[1770435499427,49.00034729,88.196,88.13,53.26778194]
[1770435499825,49.00034729,88.196,88.12,63.48798194]
[1770435500026,49.00034729,88.188,88.12,63.48798194]
[1770435502735,49.00034729,88.188,88.12,53.26778194]
[1770435503337,49.00034729,88.188,88.12,63.48798194]
[1770435503526,49.00034729,88.188,88.12,53.26778194]
[1770435504838,49.00034729,88.188,88.13,53.26778194]
[1770435507738,49.00034729,88.186,88.13,53.26778194]
[1770435509736,49.00034729,88.183,88.13,53.26778194]
[1770435510739,49.00034729,88.241,88.141,53.26778194]
[1770435512237,49.00034729,88.216,88.154,53.26778194]
[1770435512437,49.00034729,88.216,88.139,53.26778194]
[1770435513241,49.00034729,88.193,88.139,53.26778194]
[1770435514836,49.00034729,88.19,88.139,53.26778194]
[1770435516244,49.00034729,88.19,88.127,53.29335404]
[1770435516740,53.57453001,88.184,88.127,53.29335404]
[1770435517844,53.57453001,88.184,88.136,53.29335404]
[1770435518749,53.57453001,88.184,88.085,34.06]
[1770435518750,53.57453001,88.197,88.139,53.29335404]
[1770435520449,63.78593001,88.197,88.139,53.29335404]
[1770435520640,53.57453001,88.197,88.139,53.29335404]
[1770435521750,53.57453001,88.197,88.151,53.29335404]
[1770435522735,53.57453001,88.197,88.153,53.29335404]
[1770435523739,53.57453001,88.197,88.155,53.29335404]
[1770435524748,53.57453001,88.197,88.157,53.29335404]
[1770435525346,158.8,88.255,88.16,53.29335404]
[1770435525347,53.57453001,88.229,88.16,53.29335404]
[1770435526047,53.57453001,88.229,88.148,53.29335404]
[1770435527748,53.57453001,88.207,88.148,53.29335404]
[1770435528549,53.57453001,88.203,88.108,53.29335404]
[1770435529247,14.10646991,88.266,88.085,20.4487]
[1770435529248,53.57453001,88.188,88.121,53.29335404]
[1770435530753,20.4168,88.223,88.124,10.2197]
[1770435530754,53.57453001,88.175,88.124,10.2197]
[1770435531753,53.57453001,88.175,88.121,53.29335404]
[1770435532154,53.57453001,88.173,88.121,53.29335404]
[1770435532752,53.57453001,88.169,88.121,53.29335404]
[1770435533956,53.57453001,88.167,88.121,53.29335404]
[1770435535756,53.57453001,88.16,88.09,53.29335404]
[1770435536658,10.2155,88.161,88.09,53.29335404]
[1770435536659,53.57453001,88.156,88.09,53.29335404]
[1770435537457,53.57453001,88.156,88.093,53.29335404]
[1770435539363,53.57453001,88.156,88.102,53.29335404]
[1770435539561,53.57453001,88.169,88.102,53.29335404]
[1770435540660,10.2148,88.167,88.104,10.2221]
[1770435540860,63.78933001,88.167,88.105,53.29335404]
[1770435541658,53.57453001,88.167,88.107,53.29335404]
[1770435542862,53.57453001,88.167,88.08,34.06]
[1770435542863,53.57453001,88.167,88.109,53.29335404]
[1770435543763,53.57453001,88.167,88.111,53.29335404]
[1770435544362,53.57453001,88.167,88.114,53.29335404]
[1770435545152,53.57453001,88.167,88.119,53.29335404]
[1770435546763,53.57453001,88.167,88.121,51.84610958]
[1770435547262,52.35340012,88.184,88.123,51.84610958]
[1770435548864,52.35340012,88.184,88.136,51.25365373]
[1770435549663,52.35340012,88.184,88.138,51.25365373]
[1770435550863,52.35340012,88.184,88.126,10.2195]
[1770435551566,52.35340012,88.184,88.086,51.25365373]
[1770435552863,52.41152578,88.173,88.106,10.2218]
[1770435553867,52.41152578,88.17,88.106,10.2218]
[1770435554661,52.41152578,88.168,88.106,10.2218]
[1770435554862,52.41152578,88.168,88.084,51.25365373]
[1770435555673,52.41152578,88.151,88.097,10.2228]
[1770435559570,52.41152578,88.151,88.084,51.25365373]
[1770435560678,52.41152578,88.149,88.084,51.25365373]
[1770435564683,52.41152578,88.149,88.087,51.25365373]
[1770435566781,52.41152578,88.149,88.092,51.25365373]
[1770435567775,52.41152578,88.149,88.094,51.25365373]
[1770435569672,52.41152578,88.149,88.096,10.223]
[1770435569870,52.41152578,88.149,88.097,51.25365373]
[1770435570580,52.41152578,88.149,88.099,51.25365373]
[1770435571576,52.41152578,88.149,88.087,51.25365373]
[1770435572672,52.41152578,88.147,88.087,51.25365373]
[1770435573785,52.41152578,88.145,88.087,51.25365373]
[1770435574178,52.41152578,88.145,88.081,10.2247]
[1770435574477,52.41152578,88.142,88.074,51.25365373]
[1770435575187,52.41152578,88.151,88.075,51.25365373]
[1770435575485,20.4221,88.2,87.989,159.2177]
[1770435575486,52.41152578,88.217,88.08,51.25365373]
[1770435575682,49.92433502,88.18,88.116,48.30160662]
[1770435576683,49.92433502,88.18,88.12,10.2202]
[1770435578680,10.2135,88.179,88.12,10.2202]
[1770435578886,49.92433502,88.178,88.12,10.2202]
[1770435579284,49.92433502,88.178,88.13,10.219]
[1770435581588,49.92433502,88.178,88.116,48.30160662]
[1770435584089,49.92433502,88.239,88.12,48.30160662]
[1770435584589,10.2101,88.208,88.132,10.2188]
[1770435584789,49.92433502,88.207,88.133,48.30160662]
[1770435585390,49.92433502,88.207,88.145,48.30160662]
[1770435588892,49.92433502,88.204,88.145,48.30160662]
[1770435589593,49.92433502,88.204,88.145,58.51890662]
[1770435592487,49.92433502,88.2,88.145,48.30160662]
[1770435594292,49.92433502,88.197,88.131,48.30160662]
[1770435595292,49.92433502,88.18,88.131,48.30160662]
[1770435595795,49.92433502,88.174,88.131,48.30160662]
[1770435596989,49.92433502,88.171,88.117,48.30160662]
[1770435597590,10.2157,88.16,88.117,48.30160662]
[1770435597795,60.14003502,88.16,88.117,48.30160662]
[1770435597996,49.92433502,88.16,88.117,48.30160662]
[1770435598193,60.13993502,88.16,88.097,10.2229]
[1770435598393,60.13993502,88.16,88.098,48.30160662]
[1770435599594,60.13993502,88.16,88.1,48.30160662]
[1770435600998,10.2166,88.152,88.1,48.30160662]
[1770435601887,49.92433502,88.16,88.1,48.30160662]
[1770435601888,60.14183502,88.144,88.1,48.30160662]
[1770435602598,10.2185,88.136,88.1,48.30160662]
[1770435602793,60.14283502,88.136,88.1,48.30160662]
[1770435604488,49.92433502,88.136,88.074,48.30160662]
[1770435605797,47.97644789,88.126,88.074,48.30160662]
[1770435607591,47.97644789,88.122,88.074,48.30160662]
[1770435609403,158.88,88.191,88.074,48.30160662]
[1770435609404,47.80395549,88.135,88.074,48.30160662]
[1770435610098,47.80395549,88.135,88.076,48.66001464]
[1770435610706,47.80395549,88.135,88.087,48.66001464]
[1770435611006,47.80395549,88.185,88.087,48.66001464]
[1770435611896,47.80395549,88.152,88.089,48.66001464]
[1770435612900,47.80395549,88.15,88.089,48.66001464]
[1770435613698,10.2169,88.149,88.089,48.66001464]
[1770435613904,47.80395549,88.148,88.089,48.66001464]
[1770435614499,47.80395549,88.148,88.092,48.66001464]
[1770435615201,10.2174,88.146,88.092,48.66001464]
[1770435615506,47.80395549,88.145,88.094,48.66001464]
[1770435616909,47.80395549,88.143,88.094,48.66001464]
[1770435618906,47.80395549,88.14,88.094,48.66001464]
[1770435620597,58.02215549,88.138,88.094,48.66001464]
[1770435623112,47.80395549,88.138,88.094,48.66001464]
[1770435624711,10.2184,88.137,88.094,48.66001464]
[1770435625416,58.02235549,88.137,88.094,48.66001464]
[1770435627616,47.80395549,88.137,88.094,48.66001464]
[1770435628420,47.80395549,88.137,88.009,159.1827]
[1770435628421,47.80395549,88.137,88.083,48.66001464]
[1770435628620,47.80395549,88.137,88.071,48.66001464]
[1770435629517,47.80395549,88.119,88.071,48.66001464]
[1770435630718,47.80395549,88.114,88.071,48.66001464]
[1770435638525,47.80395549,88.114,88.019,20.464]
[1770435638526,47.80395549,88.114,88.021,43.73717068]
[1770435638825,47.80395549,88.114,88.073,43.73717068]
[1770435639117,44.25989263,88.135,88.073,43.73717068]
[1770435639719,44.25989263,88.135,88.075,43.73717068]
[1770435639928,44.25989263,88.146,88.075,43.73717068]
[1770435640426,44.25989263,88.146,88.084,43.73717068]
[1770435641021,44.25989263,88.137,88.084,43.73717068]
[1770435641924,44.25989263,88.137,88.025,34.06]
[1770435642126,44.25989263,88.137,88.026,43.73717068]
[1770435642326,44.25989263,88.137,88.028,43.73717068]
[1770435642525,44.25989263,88.137,88.031,34.06]
[1770435642726,44.25989263,88.124,88.064,43.73717068]
[1770435643820,44.25989263,88.124,88.069,43.73717068]
[1770435648632,44.25989263,88.124,88.025,43.73717068]
[1770435648835,44.25989263,88.097,88.025,43.73717068]
[1770435649026,44.25989263,88.097,88.04,43.73717068]
[1770435649423,44.25989263,88.094,88.04,43.73717068]
[1770435649624,44.25989263,88.094,87.991,27.44968219]
[1770435649827,44.25989263,88.094,87.969,20.4756]
[1770435649828,44.25989263,88.094,88.016,43.73717068]
[1770435650035,44.25989263,88.07,88.016,43.73717068]
[1770435653133,44.25989263,88.068,87.992,43.73717068]
[1770435653938,44.25989263,88.053,87.995,43.73717068]
[1770435656744,44.25989263,88.053,87.997,43.73717068]
[1770435658542,44.25989263,88.053,87.985,43.73717068]
[1770435659749,44.25989263,88.053,87.987,43.73717068]
[1770435660649,44.25989263,88.05,87.987,43.73717068]
[1770435663743,44.25989263,88.045,87.976,43.73717068]
[1770435664346,10.2304,88.033,87.976,43.73717068]
[1770435664541,44.25989263,88.032,87.976,43.73717068]
[1770435665147,44.25989263,88.03,87.976,43.73717068]
[1770435666049,44.25989263,88.03,87.957,37.92965602]
[1770435666848,40.05322409,88.019,87.96,37.92965602]
[1770435667658,40.05322409,88.056,87.96,37.92965602]
[1770435668144,39.89456528,88.037,87.976,38.46401954]
[1770435668347,39.89456528,88.037,87.962,38.46401954]
[1770435668551,39.89456528,88.037,87.948,38.46401954]
[1770435668859,159.0925,88.06,87.948,38.46401954]
[1770435668860,39.89456528,88.001,87.948,38.46401954]
[1770435669754,39.89456528,88.001,87.942,10.2409]
[1770435669755,39.89456528,87.994,87.933,38.46401954]
[1770435670858,39.89456528,87.992,87.933,38.46401954]
[1770435671760,39.89456528,87.99,87.933,38.46401954]
[1770435672552,39.89456528,87.986,87.915,38.46401954]
[1770435673154,39.89456528,87.982,87.915,38.46401954]
[1770435674558,39.89456528,87.996,87.917,38.46401954]
[1770435675856,39.89456528,87.996,87.924,38.46401954]
[1770435676260,39.89456528,87.992,87.926,38.46401954]
[1770435676954,1.97885244,87.997,87.929,38.46401954]
[1770435677162,39.89456528,88.005,87.929,38.46401954]
[1770435677352,1.9788018,88.017,87.929,38.46401954]
[1770435677558,39.89456528,88.032,87.967,38.46401954]
[1770435678060,1.97852617,88.027,87.967,38.46401954]
[1770435678252,39.89456528,88.04,87.967,38.46401954]
[1770435678656,39.89456528,88.04,87.971,38.46401954]
[1770435679565,1.97800886,88.047,87.974,38.46401954]
[1770435679566,39.89456528,88.037,87.974,38.46401954]
[1770435681164,39.89456528,88.034,87.972,10.2374]
[1770435681367,39.89456528,88.034,87.957,38.46401954]
[1770435681764,39.89456528,88.034,87.943,38.46401954]
[1770435681962,39.89456528,87.993,87.928,38.46401954]